Workbook

Sheet Sheet1
A1: MMF | D1: PM Checks
A3: "X"
A5: Undulator | B5: 30
A6: Date: | B6: 2014-02-27
A7: Crew: | B7: BR-MR
A9: BUCK IN
A10: Far Value | B10: 0 | C10: PM1 X1
A11: Near Value | B11: 0 | C11: PM 4 X1
A12: 1st Far | B12: 28
A13: 1st. Near | B13: 27.595
A14: 2nd. Far | B14: 26
A15: 2nd Near | B15: 27.087
A16: Far Should Read | B16: =BuckIn(B10,B11,B12,B13,B14,B15) -> 27.45710456
A17: Near Should Read | B17: 27.45710456
A18: LOS | B18: 27.45710456
A20: Undulator
A23: 1) | B23: 2) | C23: 3) | D23: 4)
A24: 31.952 | B24: 31.944 | C24: 31.944 | D24: 31.944
A25: 1 | B25: 1 | C25: 1 | D25: 1
A26: =SUM(A24:A25) -> 32.952 | B26: =SUM(B24:B25) -> 32.944 | C26: =SUM(C24:C25) -> 32.944 | D26: =SUM(D24:D25) -> 32.944
A27: =B18 -> 27.45710456 | B27: =B18 -> 27.45710456 | C27: =B18 -> 27.45710456 | D27: =B18 -> 27.45710456
A28: =SUM(A27-A26) -> -5.494895442 | B28: =SUM(B27-B26) -> -5.486895442 | C28: =SUM(C27-C26) -> -5.486895442 | D28: =SUM(D27-D26) -> -5.486895442
A30: 5) | B30: 6) | C30: 7) | D30: 8)
A31: 22.176 | B31: 22.172 | C31: 22.17 | D31: 22.171
A32: 1 | B32: 1 | C32: 1 | D32: 1
A33: =SUM(A31:A32) -> 23.176 | B33: =SUM(B31:B32) -> 23.172 | C33: =SUM(C31:C32) -> 23.17 | D33: =SUM(D31:D32) -> 23.171
A34: =B18 -> 27.45710456 | B34: =B18 -> 27.45710456 | C34: =B18 -> 27.45710456 | D34: =B18 -> 27.45710456
A35: =SUM(A34-A33) -> 4.281104558 | B35: =SUM(B34-B33) -> 4.285104558 | C35: =SUM(C34-C33) -> 4.287104558 | D35: =SUM(D34-D33) -> 4.286104558
B38: Reference | C38: Block
A40: A) | B40: B) | C40: C) | D40: D)
A41: 33.503 | B41: 28.968 | C41: 27.209 | D41: 27.208
A42: 1 | B42: 1 | C42: 1 | D42: 1
A43: =SUM(A41:A42) -> 34.503 | B43: =SUM(B41:B42) -> 29.968 | C43: =SUM(C41:C42) -> 28.209 | D43: =SUM(D41:D42) -> 28.208
A44: =B18 -> 27.45710456 | B44: =B18 -> 27.45710456 | C44: =B18 -> 27.45710456 | D44: =B18 -> 27.45710456
A45: =SUM(A44-A43) -> -7.045895442 | B45: =SUM(B44-B43) -> -2.510895442 | C45: =SUM(C44-C43) -> -0.7518954424 | D45: =SUM(D44-D43) -> -0.7508954424
A51: MMF | D51: PM Checks
A53: "X"
A55: =B18 -> 27.45710456 | B55: LOS
A56: Undulator | B56: =B5 -> 30
A57: Date: | B57: =B6 -> 2014-02-27
A58: Crew: | B58: =B7 -> BR-MR
B61: PM4
A63: X1) Buck In | B63: Y1) | C63: Y2)
B64: 30.056 | C64: 30.059
B65: 1 | C65: 1
B66: =SUM(B64:B65) -> 31.056 | C66: =SUM(C64:C65) -> 31.059
B67: =B18 -> 27.45710456 | C67: =B18 -> 27.45710456
A68: 0 | B68: =SUM(B67-B66) -> -3.598895442 | C68: =SUM(C67-C66) -> -3.601895442
B71: PM3
A73: X1) | B73: Y1) | C73: Y2)
A74: 28.353 | B74: 31.951 | C74: 31.946
A75: 1 | B75: 1 | C75: 1
A76: =SUM(A74:A75) -> 29.353 | B76: =SUM(B74:B75) -> 32.951 | C76: =SUM(C74:C75) -> 32.946
A77: =B18 -> 27.45710456 | B77: =B18 -> 27.45710456 | C77: =B18 -> 27.45710456
A78: =SUM(A77-A76) -> -1.895895442 | B78: =SUM(B77-B76) -> -5.493895442 | C78: =SUM(C77-C76) -> -5.488895442
B81: PM 2
A82: X1) | B82: Y1) | C82: Y2)
A83: 28.35 | B83: 31.949 | C83: 31.948
A84: 1 | B84: 1 | C84: 1
A85: =SUM(A83:A84) -> 29.35 | B85: =SUM(B83:B84) -> 32.949 | C85: =SUM(C83:C84) -> 32.948
A86: =B18 -> 27.45710456 | B86: =B18 -> 27.45710456 | C86: =B18 -> 27.45710456
A87: =SUM(A86-A85) -> -1.892895442 | B87: =SUM(B86-B85) -> -5.491895442 | C87: =SUM(C86-C85) -> -5.490895442
B90: PM1
A91: X1) Buck In | B91: Y1) | C91: Y2)
B92: 30.058 | C92: 30.058
B93: 1 | C93: 1
B94: =SUM(B92:B93) -> 31.058 | C94: =SUM(C92:C93) -> 31.058
B95: =B18 -> 27.45710456 | C95: =B18 -> 27.45710456
A96: 0 | B96: =SUM(B95-B94) -> -3.600895442 | C96: =SUM(C95-C94) -> -3.600895442
A101: MMF | D101: PM Checks
A103: "Y" | C103: PM4Y1 | D103: PM1Y1
C104: 8.69 | D104: 8.692
C105: 1 | D105: 1
A106: Undulator | B106: =B5 -> 30 | C106: =SUM(C104+C105) -> 9.69 | D106: =SUM(D104+D105) -> 9.692
A107: Date: | B107: =B6 -> 2014-02-27
A108: Crew: | B108: =B7 -> BR-MR
C109: HI = | D109: =AVERAGE(C106,D106) -> 9.691
A111: PM4 | C111: PM3
A113: Y1) | B113: X1) | C113: Y2) | D113: X1
A114: =C104 -> 8.69 | B114: 12.296 | C114: 8.685 | D114: 12.29
A115: 1 | B115: 1 | C115: 1 | D115: 1
A116: =SUM(A114:A115) -> 9.69 | B116: =SUM(B114:B115) -> 13.296 | C116: =SUM(C114:C115) -> 9.685 | D116: =SUM(D114:D115) -> 13.29
A117: =D109 -> 9.691 | B117: =D109 -> 9.691 | C117: =D109 -> 9.691 | D117: =D109 -> 9.691
A118: =SUM(A117-A116) -> 0.001 | B118: =SUM(B117-B116) -> -3.605 | C118: =SUM(C117-C116) -> 0.006 | D118: =SUM(D117-D116) -> -3.599
A121: PM2 | C121: PM1
A123: Y1) | B123: X1) | C123: Y1) | D123: X1)
A124: 8.689 | B124: 12.291 | C124: =D104 -> 8.692 | D124: 12.293
A125: 1 | B125: 1 | C125: 1 | D125: 1
A126: =SUM(A124:A125) -> 9.689 | B126: =SUM(B124:B125) -> 13.291 | C126: =SUM(C124:C125) -> 9.692 | D126: =SUM(D124:D125) -> 13.293
A127: =D109 -> 9.691 | B127: =D109 -> 9.691 | C127: =D109 -> 9.691 | D127: =D109 -> 9.691
A128: =SUM(A127-A126) -> 0.002 | B128: =SUM(B127-B126) -> -3.6 | C128: =SUM(C127-C126) -> -0.001 | D128: =SUM(D127-D126) -> -3.602
A135: Top Of Gage Block | C135: Probe Location in (X)
A137: 14.089 | C137: -5.464 | D137: LOS
A138: =D109 -> 9.691 | C138: 0.033 | D138: Mic To Plus Edge
A139: =SUM(A138-A137) -> -4.398 | C139: =SUM(C137+C138) -> -5.431
C140: -0.039
C141: =(C139+C140) -> -5.47 | D141: Probe Location
A151: MMF | D151: PM Checks
A153: "Y"
A155: Undulator | B155: =B5 -> 30
A156: Date: | B156: =B6 -> 2014-02-27
A157: Crew: | B157: =B7 -> BR-MR
A160: HI = | B160: =D109 -> 9.691
A162: Undulator
A164: 1) | B164: 2) | C164: 3) | D164: 4)
A165: 5.208 | B165: 5.215 | C165: 5.214 | D165: 5.213
A166: 1 | B166: 1 | C166: 1 | D166: 1
A167: =SUM(A165:A166) -> 6.208 | B167: =SUM(B165:B166) -> 6.215 | C167: =SUM(C165:C166) -> 6.214 | D167: =SUM(D165:D166) -> 6.213
A168: =D109 -> 9.691 | B168: =D109 -> 9.691 | C168: =D109 -> 9.691 | D168: =D109 -> 9.691
A169: =SUM(A168-A167) -> 3.483 | B169: =SUM(B168-B167) -> 3.476 | C169: =SUM(C168-C167) -> 3.477 | D169: =SUM(D168-D167) -> 3.478
A172: 5) | B172: 6) | C172: 7) | D172: 8)
A173: 12.29 | B173: 12.292 | C173: 12.293 | D173: 12.294
A174: 1 | B174: 1 | C174: 1 | D174: 1
A175: =SUM(A173+A174) -> 13.29 | B175: =SUM(B173+B174) -> 13.292 | C175: =SUM(C173+C174) -> 13.293 | D175: =SUM(D173+D174) -> 13.294
A176: =D109 -> 9.691 | B176: =D109 -> 9.691 | C176: =D109 -> 9.691 | D176: =D109 -> 9.691
A177: =SUM(A176-A175) -> -3.599 | B177: =SUM(B176-B175) -> -3.601 | C177: =SUM(C176-C175) -> -3.602 | D177: =SUM(D176-D175) -> -3.603
A181: Reference Block
A183: A) | B183: B) | C183: C) | D183: D)
A184: 8.931 | C184: 11.074 | D184: 14.156
A185: 1 | C185: 1 | D185: 1
A186: =SUM(A184+A185) -> 9.931 | C186: =SUM(C184+C185) -> 12.074 | D186: =SUM(D184+D185) -> 15.156
A187: =D109 -> 9.691 | C187: =D109 -> 9.691 | D187: =D109 -> 9.691
A188: =SUM(A187-A186) -> -0.24 | B188: 0 | C188: =SUM(C187-C186) -> -2.383 | D188: =SUM(D187-D186) -> -5.465
A191: Flats
A193: U/S | C193: D/S
A194: (+) | B194: (-) | C194: (+) | D194: (-)
A195: 7.975 | B195: 7.973 | C195: 7.977 | D195: 7.976
A196: =D109 -> 9.691 | B196: =D109 -> 9.691 | C196: =D109 -> 9.691 | D196: =D109 -> 9.691
A197: =SUM(A196-A195) -> 1.716 | B197: =SUM(B196-B195) -> 1.718 | C197: =SUM(C196-C195) -> 1.714 | D197: =SUM(D196-D195) -> 1.715

Sheet Sheet2
A2: Undulator | C2: =Sheet1!B5 -> 30
A3: Date | C3: =Sheet1!B6 -> 2014-02-27
A4: Crew | C4: =Sheet1!B7 -> BR-MR
A7: Undulator Values
A9: TB | B9: Y (in) | C9: Y (mm) | F9: TB | G9: X (in) | H9: X (mm)
A10: 1 | B10: =Sheet1!A169 -> 3.483 | C10: =B10*25.4 -> 88.4682 | F10: 5 | G10: =Sheet1!A35 -> 4.281104558 | H10: =G10*25.4 -> 108.7400558
A11: 2 | B11: =Sheet1!B169 -> 3.476 | C11: =B11*25.4 -> 88.2904 | F11: 6 | G11: =Sheet1!B35 -> 4.285104558 | H11: =G11*25.4 -> 108.8416558
A12: 3 | B12: =Sheet1!C169 -> 3.477 | C12: =B12*25.4 -> 88.3158 | F12: 7 | G12: =Sheet1!C35 -> 4.287104558 | H12: =G12*25.4 -> 108.8924558
A13: 4 | B13: =Sheet1!D169 -> 3.478 | C13: =B13*25.4 -> 88.3412 | F13: 8 | G13: =Sheet1!D35 -> 4.286104558 | H13: =G13*25.4 -> 108.8670558
A16: PM Values
C18: Upstream | E18: (PM 3) | G18: Checks
A19: TB | B19: X (in) | C19: Y (in) | D19: X (mm) | E19: Y (mm) | G19: X (mm) | H19: Y (mm)
A20: Y2 | B20: =Sheet1!C78 -> -5.488895442 | C20: =Sheet1!C118 -> 0.006 | D20: =B20*25.4 -> -139.4179442 | E20: =C20*25.4 -> 0.1524 | G20: =H10-D21 -> 156.8958 | H20: =C10-E20 -> 88.3158
A21: X1 | B21: =Sheet1!A78 -> -1.895895442 | C21: =Sheet1!D118 -> -3.599 | D21: =B21*25.4 -> -48.15574424 | E21: =C21*25.4 -> -91.4146
A22: Y1 | B22: =Sheet1!B78 -> -5.493895442 | D22: =B22*25.4 -> -139.5449442
C24: Downstream | E24: (PM 2) | G24: Checks
A25: TB | B25: X (in) | C25: Y (in) | D25: X (mm) | E25: Y (mm) | G25: X (mm) | H25: Y (mm)
A26: Y1 | B26: =Sheet1!B87 -> -5.491895442 | C26: =Sheet1!A128 -> 0.002 | D26: =B26*25.4 -> -139.4941442 | E26: =C26*25.4 -> 0.0508 | G26: =H13-D27 -> 156.9466 | H26: =C13-E26 -> 88.2904
A27: X1 | B27: =Sheet1!A87 -> -1.892895442 | C27: =Sheet1!B128 -> -3.6 | D27: =B27*25.4 -> -48.07954424 | E27: =C27*25.4 -> -91.44
A28: Y2 | B28: =Sheet1!C87 -> -5.490895442 | C28: \ | D28: =B28*25.4 -> -139.4687442
B33: Probe | F33: Flats
B35: X (in) | C35: X (mm) | F35: Y(in) | G35: Y(mm)
B36: =Sheet1!C141 -> -5.47 | C36: =B36*25.4 -> -138.938 | E36: US + | F36: =Sheet1!A197 -> 1.716 | G36: =F36*25.4 -> 43.5864
E37: US - | F37: =Sheet1!B197 -> 1.718 | G37: =F37*25.4 -> 43.6372
E38: DS + | F38: =Sheet1!C197 -> 1.714 | G38: =F38*25.4 -> 43.5356
C39: Top of Gage Block | E39: DS - | F39: =Sheet1!D197 -> 1.715 | G39: =F39*25.4 -> 43.561
B41: Y (in) | C41: Y (mm)
B42: =Sheet1!A139 -> -4.398 | C42: =B42*25.4 -> -111.7092

Sheet Sheet3
A2: Undulator | C2: 13
A3: Date | C3: =Sheet1!B6 -> 2014-02-27
A4: Crew | C4: MR,BR
C7: Undulator Values
A9: TB | B9: X (in) | C9: Y (in) | D9: X (mm) | E9: Y (mm) | G9: Probe
A10: 1 | B10: =Sheet1!A28 -> -5.494895442 | C10: =Sheet1!A169 -> 3.483 | D10: =SUM(B10*25.4) -> -139.5703442 | E10: =SUM(C10*25.4) -> 88.4682
A11: 2 | B11: =Sheet1!B28 -> -5.486895442 | C11: =Sheet1!B169 -> 3.476 | D11: =SUM(B11*25.4) -> -139.3671442 | E11: =SUM(C11*25.4) -> 88.2904 | G11: X (in) | H11: X (mm)
A12: 3 | B12: =Sheet1!C28 -> -5.486895442 | C12: =Sheet1!C169 -> 3.477 | D12: -139.3671442 | E12: 88.3158 | G12: =Sheet1!C141 -> -5.47 | H12: =SUM(G12*25.4) -> -138.938
A13: 4 | B13: =Sheet1!D28 -> -5.486895442 | C13: =Sheet1!D169 -> 3.478 | D13: -139.3671442 | E13: 88.3412
A14: 5 | B14: =Sheet1!A35 -> 4.281104558 | C14: =Sheet1!A177 -> -3.599 | D14: 108.7400558 | E14: -91.4146
A15: 6 | B15: =Sheet1!B35 -> 4.285104558 | C15: =Sheet1!B177 -> -3.601 | D15: 108.8416558 | E15: -91.4654 | G15: Top of Gage Block
A16: 7 | B16: =Sheet1!C35 -> 4.287104558 | C16: =Sheet1!C177 -> -3.602 | D16: 108.8924558 | E16: -91.4908
A17: 8 | B17: =Sheet1!D35 -> 4.286104558 | C17: =Sheet1!D177 -> -3.603 | D17: 108.8670558 | E17: -91.5162 | G17: Y (in) | H17: Y (mm)
G18: =Sheet1!A139 -> -4.398 | H18: =SUM(G18*25.4) -> -111.7092
C19: Undulator PM Values
C21: Upstream | E21: (PM 3)
A22: TB | B22: X (in) | C22: Y (in) | D22: X (mm) | E22: Y (mm) | G22: Flats
A23: Y2 | B23: =Sheet1!A78 -> -1.895895442 | C23: =Sheet1!C118 -> 0.006 | D23: =SUM(B23*25.4) -> -48.15574424 | E23: =SUM(C23*25.4) -> 0.1524
A24: X1 | B24: =Sheet1!A78 -> -1.895895442 | C24: =Sheet1!D118 -> -3.599 | D24: =SUM(B24*25.4) -> -48.15574424 | E24: =SUM(C24*25.4) -> -91.4146 | H24: Y(in) | I24: Y(mm)
A25: Y1 | B25: =Sheet1!B78 -> -5.493895442 | D25: =SUM(B25*25.4) -> -139.5449442 | G25: US + | H25: =Sheet1!A197 -> 1.716 | I25: =SUM(H25*25.4) -> 43.5864
G26: US - | H26: =Sheet1!B197 -> 1.718 | I26: =SUM(H26*25.4) -> 43.6372
C27: Downstream | E27: (PM 2) | G27: DS + | H27: =Sheet1!C197 -> 1.714 | I27: =SUM(H27*25.4) -> 43.5356
A28: TB | B28: X (in) | C28: Y (in) | D28: X (mm) | E28: Y (mm) | G28: DS - | H28: =Sheet1!D197 -> 1.715 | I28: =SUM(H28*25.4) -> 43.561
A29: Y1 | B29: =Sheet1!B87 -> -5.491895442 | C29: =Sheet1!A128 -> 0.002 | D29: =SUM(B29*25.4) -> -139.4941442 | E29: =SUM(C29*25.4) -> 0.0508
A30: X1 | B30: =Sheet1!A87 -> -1.892895442 | C30: =Sheet1!B128 -> -3.6 | D30: =SUM(B30*25.4) -> -48.07954424 | E30: =SUM(C30*25.4) -> -91.44
A31: Y2 | B31: =Sheet1!C87 -> -5.490895442 | D31: =SUM(B31*25.4) -> -139.4687442
C33: Ref. PM Values
C35: Upstream | E35: (PM 4)
A36: TB | B36: X (in) | C36: Y (in) | D36: X (mm) | E36: Y (mm)
A37: Y1 | B37: =Sheet1!B68 -> -3.598895442 | C37: =Sheet1!A118 -> 0.001 | D37: =SUM(B37*25.4) -> -91.41194424 | E37: =SUM(C37*25.4) -> 0.0254
A38: X1 | B38: 0 | C38: =Sheet1!B118 -> -3.605 | D38: 0 | E38: =SUM(C38*25.4) -> -91.567
A39: Y2 | B39: =Sheet1!C68 -> -3.601895442 | D39: =SUM(B39*25.4) -> -91.48814424
C41: Downstream | E41: (PM 1)
A42: TB | B42: X (in) | C42: Y (in) | D42: X (mm) | E42: Y (mm)
A43: Y1 | B43: =Sheet1!B96 -> -3.600895442 | C43: =Sheet1!C128 -> -0.001 | D43: =SUM(B43*25.4) -> -91.46274424 | E43: =SUM(C43*25.4) -> -0.0254
A44: X1 | B44: 0 | C44: =Sheet1!D128 -> -3.602 | D44: 0 | E44: =SUM(C44*25.4) -> -91.4908
A45: Y2 | B45: =Sheet1!C96 -> -3.600895442 | D45: =SUM(B45*25.4) -> -91.46274424
C47: Ref. Block
A48: TB | B48: X (in) | C48: Y (in) | D48: X (mm) | E48: Y (mm)
A49: A | B49: =Sheet1!A45 -> -7.045895442 | C49: =Sheet1!A188 -> -0.24 | D49: =SUM(B49*25.4) -> -178.9657442 | E49: =SUM(C49*25.4) -> -6.096
A50: B | B50: =Sheet1!B45 -> -2.510895442 | D50: =SUM(B50*25.4) -> -63.77674424
A51: C | B51: =Sheet1!C45 -> -0.7518954424 | C51: =Sheet1!C188 -> -2.383 | D51: =SUM(B51*25.4) -> -19.09814424 | E51: =SUM(C51*25.4) -> -60.5282
A52: D | B52: =Sheet1!D45 -> -0.7508954424 | C52: =Sheet1!D188 -> -5.465 | D52: =SUM(B52*25.4) -> -19.07274424 | E52: =SUM(C52*25.4) -> -138.811
